Cogmind - Beta 11.1 @@@ ROGUE MODE // 2022.05.31 @ 19:18:57 Player: Exp. Geonium Core Result: Destroyed by G-73 Enforcer with Phase Gun Performance ------------- Evolutions (8) 4000 Regions Visited (24) 4800 Robots Destroyed (317) 1585 Value Destroyed (19564) 19564 Prototype IDs (41) 820 Alien Tech Used (0) 0 Bonus (12577) 12577 TOTAL SCORE: 43346 Bonus ------- Triggered Max Security 1000 High Alert Combat Kills 4774 Follower Combat Kills 2747 Entered Garrisons 1800 Used RIF Installer 4500 Aligned with FarCom 300 Scanned by Researcher 500 Friendly Fire -3044 Cogmind --------- Core Integrity 0/1450 Matter 300/300 Energy 100/100 System Corruption 19% Temperature Cool (94) Movement Core (50) Location -2/Testing Parts ------- > --- POWER (2) -------- (None) > --- PROPULSION (12) -- (None) > --- UTILITY (4) ------ (None) > --- WEAPON (5) ------- (None) > --- INVENTORY (5) ---- Light Quantum Reactor Quantum Capacitor Relay Coupler [Hunter] (26) Relay Coupler [Heavy] (22) Peak State ------------ > --- POWER ------------ Light Quantum Reactor Light Quantum Reactor > --- PROPULSION ------- Biometal Medium Treads Armored Heavy Treads Armored Heavy Treads Biometal Heavy Treads Flexi-carbon Leg Flexi-carbon Leg Flexi-carbon Leg Enhanced Flexi-carbon Leg > --- UTILITY ---------- Quantum Capacitor Relay Coupler [Sentry] Relay Coupler [Behemoth] > --- WEAPON ----------- Improved Arc Projector Improved Arc Projector Improved Arc Projector Enhanced Quantum Rifle Advanced Remote Datajack > --- INVENTORY -------- Spectral Analyzer Improved Force Field Relay Coupler [NC] Relay Coupler [Heavy] Improved Remote Datajack [Rating: 159] Favorites ----------- Power Light Antimatter Reactor Engine Angular Momentum Engine Power Core Light Nuclear Core Reactor Light Antimatter Reactor Propulsion Light Treads Treads Light Treads Leg Carbon-fiber Leg Wheel Wheel Flight Unit Xenon Bombardment Thruster Utility High-capacity Storage Unit Device Advanced Shield Generator Storage High-capacity Storage Unit Processor Advanced Targeting Computer Hackware Relay Coupler [Sentry] Protection Improved Medium Armor Plating Weapon Autogun Energy Gun Improved Arc Projector Energy Cannon Null Cannon Ballistic Gun Autogun Ballistic Cannon AWS/Autocannon Launcher Micro-nuke Launcher Special Weapon Remote Datajack Impact Weapon Power Maul Slashing Weapon Chainsword Piercing Weapon Makeshift Spear Special Melee Weapon Advanced Datajack Build | -11 -10 -10 -10 -9 -8 -7 -7 -7 -7 -6 -6 -6 -6 -5 -5 -4 -4 -3 -3 -3 -3 -2 -2 -2 ------- Run | Scr Mat Min Exi Min Mat Fac Gar Fac Gar Fac Gar Fac Gar Fac Gar Fac Gar Res Gar Res Gar Res Gar Tes Slots Evolved 16 | . . . . . 4 2 . . . 2 . . . 2 . 2 . 2 . . . 2 . . Power 1 | . . . . . . . . . . . . . . . . . . . . . . 1 . . Propulsion 10 | . . . . . 2 1 . . . 1 . . . 2 . 2 . 1 . . . 1 . . Utility 2 | . . . . . 2 . . . . . . . . . . . . . . . . . . . Weapon 3 | . . . . . . 1 . . . 1 . . . . . . . 1 . . . . . . Parts Attached 414 | . 4 2 1 2 42 13 15 2 24 8 23 1 29 37 33 19 21 22 26 14 14 11 41 10 Power 22 | . . . . 1 2 . 2 . . 1 . . . 1 1 1 2 1 2 . . 2 4 2 Engine 2 | . . . . . 1 . . . . 1 . . . . . . . . . . . . . . Core 9 | . . . . 1 1 . 2 . . . . . . 1 1 1 1 . 1 . . . . . Reactor 11 | . . . . . . . . . . . . . . . . . 1 1 1 . . 2 4 2 Propulsion 144 | . 2 . . . 16 3 4 . 5 1 7 . 9 14 13 7 7 7 11 6 8 1 19 4 Treads 68 | . 2 . . . 8 3 4 . 5 . 5 . 5 6 4 2 7 7 2 1 2 1 4 . Leg 55 | . . . . . 8 . . . . 1 2 . 4 1 9 4 . . 9 5 6 . 3 3 Wheel 8 | . . . . . . . . . . . . . . 7 . 1 . . . . . . . . Hover . | . . . . . . . . . . . . . . . . . . . . . . . . . Flight 13 | . . . . . . . . . . . . . . . . . . . . . . . 12 1 Utility 111 | . . 2 1 1 7 3 4 . 7 4 6 1 7 14 6 6 3 10 2 4 4 3 14 2 Device 22 | . . 1 1 . 1 . . . . . . . . 2 . 2 . 2 . 1 1 3 7 1 Storage 3 | . . 1 . . . 2 . . . . . . . . . . . . . . . . . . Processor 2 | . . . . . 1 . . . . . . . . . . . . . . . . . 1 . Hackware 63 | . . . . . 1 . 2 . 6 4 3 1 7 5 4 4 3 8 2 3 3 . 6 1 Protection 21 | . . . . 1 4 1 2 . 1 . 3 . . 7 2 . . . . . . . . . Artifact . | . . . . . . . . . . . . . . . . . . . . . . . . . Weapon 137 | . 2 . . . 17 7 5 2 12 2 10 . 13 8 13 5 9 4 11 4 2 5 4 2 Energy Gun 12 | . . . . . 2 1 1 . . . . . . . 1 . . . . . . 4 3 . Energy Cannon 2 | . . . . . 1 . . . . . . . . . . . . . . . . . . 1 Ballistic Gun 54 | . 1 . . . 7 4 3 1 5 1 7 . 7 2 6 2 1 . 5 2 . . . . Ballistic Cannon 10 | . . . . . . 1 . . . . 1 . 1 2 1 1 2 1 . . . . . . Launcher 12 | . 1 . . . 6 . . . . . . . . . . . 3 1 . . . . . 1 Special Weapon 23 | . . . . . . . 1 . 2 1 2 . 2 2 5 1 1 . 2 1 1 1 1 . Impact Weapon 1 | . . . . . . . . . . . . . . . . . . . 1 . . . . . Slashing Weapon 13 | . . . . . . . . 1 2 . . . 2 2 . 1 2 1 1 . 1 . . . Piercing Weapon 1 | . . . . . 1 . . . . . . . . . . . . . . . . . . . Special Melee Weapon 9 | . . . . . . 1 . . 3 . . . 1 . . . . 1 2 1 . . . . Unidentified Prototypes 14 | . . 1 . . 3 . . . . . . . . 1 . 1 . . . 1 . 2 1 4 Corrupted Parts 1 | . . . . . . . . . . . . . . . 1 . . . . . . . . . System Corruption 10 | . . . . . . . . . . . . . . . 10 . . . . . . . . . Parts Lost 121 | . . . . . 15 . 6 . 3 . 3 . 7 11 8 . 1 7 9 2 11 2 15 21 Power 11 | . . . . . 1 . 2 . . . . . . . . . . 1 2 . . . 3 2 Propulsion 64 | . . . . . 7 . 3 . 3 . 3 . 5 6 5 . . 2 4 . 6 1 8 11 Utility 12 | . . . . . 2 . . . . . . . . 2 1 . 1 2 1 . . . . 3 Weapon 34 | . . . . . 5 . 1 . . . . . 2 3 2 . . 2 2 2 5 1 4 5 Highest Loss Streak 21 | . . . . . 7 . 2 . 1 . 1 . 2 3 4 . 1 4 4 1 11 1 5 21 To Critical Strikes 1 | . . . . . . . . . 1 . . . . . . . . . . . . . . . Average Slot Usage (%) 86 | . 85 94 89 97 93 74 94 100 97 87 95 97 92 82 87 93 93 76 67 90 77 65 63 64 Engine 2 | . 14 14 14 1 4 . . . . 5 6 6 6 . . . . . . . . . . . Core 3 | . . . . 12 4 7 6 7 7 . . . . 4 5 5 3 . 2 4 3 . . . Reactor 1 | . . . . . . . . . . . . . . . . . 1 3 1 . . 5 7 6 Treads 25 | . 26 28 28 28 20 38 36 38 37 33 32 33 27 23 12 31 46 36 16 8 18 16 6 6 Leg 7 | . 1 . . . 15 . . . . 3 5 6 7 3 24 12 . . 11 35 19 18 7 6 Wheel 1 | . . . . . . . . . . . . . . 12 3 5 . . . . . . . . Device 1 | . . 8 3 . 4 . . . . . . . . 1 . 1 5 . 1 2 . 3 6 6 Storage 6 | . 14 14 14 14 9 7 7 7 7 6 6 6 6 5 5 5 5 4 4 4 3 . . . Hackware 7 | . . . . . 1 . 4 7 12 10 8 6 16 10 10 12 9 11 6 10 10 8 6 4 Protection 3 | . . . . 11 10 2 6 7 7 . 8 10 1 2 4 1 . . . . . . . . Energy Gun 1 | . . . . . . . 2 . . . . . . . . . . . . . . 8 12 8 Ballistic Gun 11 | . 26 28 28 28 12 7 15 8 7 12 18 20 18 5 10 12 5 2 10 16 11 . . . Special Weapon 2 | . . . . . . . 3 7 3 5 4 6 5 3 2 3 4 2 2 1 2 3 4 2 Slashing Weapon 1 | . . . . . . . . 5 6 6 . . 1 3 . 1 4 3 1 2 2 . . . Naked Turns 1 | . . . . . . . . . . . . . . . . . . . . . . . . 1 Heaviest Build 132 | 14 15 30 30 32 45 85 63 62 61 67 119 76 115 76 122 124 129 132 132 92 81 61 62 71 Greatest Support 393 | 20 40 40 40 40 88 103 103 103 103 100 130 110 130 70 123 216 262 393 380 191 235 108 135 88 Greatest Overweight (x) 3 | . . . . . 1 . . . . . 1 . 1 3 3 . . . 1 . . . 1 . Average Overweight (x) . | . . . . . . . . . . . . . . 2 . . . . . . . . . . Largest Inventory Capacity 20 | . 8 15 15 15 15 20 20 20 20 20 20 20 20 20 20 20 20 20 20 20 20 5 5 5 Average Capacity 17 | . 8 12 15 15 15 16 20 20 20 20 20 20 20 20 20 20 20 20 20 20 18 5 5 5 Most Carried 20 | . 8 8 13 15 15 11 20 20 20 19 20 20 20 20 20 20 20 20 20 20 20 5 5 5 Average Carried 15 | . 7 8 10 14 14 8 16 19 19 17 19 19 18 17 17 18 19 15 12 19 17 4 4 3 Final Capacity 20 | 8 8 15 15 15 15 20 20 20 20 20 20 20 20 20 20 20 20 20 20 20 5 5 5 5 Final Carried 20 | 6 8 8 13 15 10 11 20 20 19 18 20 20 20 16 20 20 20 20 19 19 5 5 5 5 Class Distribution -------------------- 36% | Botlord-Mutant 16% | Bothacker-Mutant 16% | Mutant 14% | Botlord-Skirmisher 4% | Scavenger-Mutant 4% | Bothacker-Skirmisher 3% | Bothacker-Tank Dominant Class ---------------- Mutant | -10/Materials Mutant | -10/Mines Mutant | -10/Exiles Mutant | -9/Mines Mutant | -8/Materials Scavenger-Mutant | -7/Factory Bothacker-Mutant | -7/Garrison Bothacker-Mutant | -7/Factory Bothacker-Mutant | -7/Garrison Bothacker-Mutant | -6/Factory Bothacker-Skirmisher | -6/Garrison Bothacker-Tank | -6/Factory Botlord-Skirmisher | -6/Garrison Botlord-Mutant | -5/Factory Botlord-Skirmisher | -5/Garrison Botlord-Mutant | -4/Factory Botlord-Mutant | -4/Garrison Botlord-Mutant | -3/Research Botlord-Mutant | -3/Garrison Botlord-Skirmisher | -3/Research Botlord-Skirmisher | -3/Garrison Bothacker-Mutant | -2/Research Botlord-Mutant | -2/Garrison Botlord-Mutant | -2/Testing Resources | -11 -10 -10 -10 -9 -8 -7 -7 -7 -7 -6 -6 -6 -6 -5 -5 -4 -4 -3 -3 -3 -3 -2 -2 -2 ----------- Run | Scr Mat Min Exi Min Mat Fac Gar Fac Gar Fac Gar Fac Gar Fac Gar Fac Gar Res Gar Res Gar Res Gar Tes Matter Collected 9366 | 200 146 121 24 62 834 50 690 34 426 . 751 . 799 643 726 335 528 517 812 230 366 . 765 307 Remotely . | . . . . . . . . . . . . . . . . . . . . . . . . . Salvage Created 13417 | . 370 95 . 108 982 44 611 61 916 . 745 . 532 1937 769 298 818 1163 739 433 393 . 881 1522 Parts 664 | . 32 2 . 9 81 3 37 2 38 . 35 . 28 103 33 12 35 68 21 19 22 . 32 52 Haulers Intercepted 2 | . . . . . 1 1 . . . . . . . . . . . . . . . . . . Recyclers Shooed 1 | . . . . . . . . . . . . . . 1 . . . . . . . . . . Parts Field Recycled . | . . . . . . . . . . . . . . . . . . . . . . . . . Retrieved Matter . | . . . . . . . . . . . . . . . . . . . . . . . . . Parts Self-Destructed . | . . . . . . . . . . . . . . . . . . . . . . . . . Prevented . | . . . . . . . . . . . . . . . . . . . . . . . . . Kills | -11 -10 -10 -10 -9 -8 -7 -7 -7 -7 -6 -6 -6 -6 -5 -5 -4 -4 -3 -3 -3 -3 -2 -2 -2 ------- Run | Scr Mat Min Exi Min Mat Fac Gar Fac Gar Fac Gar Fac Gar Fac Gar Fac Gar Res Gar Res Gar Res Gar Tes Combat Hostiles Destroyed 258 | . 11 2 . 2 34 . 19 1 18 . 19 . 13 23 19 2 17 24 11 5 7 . 12 19 Melee 49 | . . . . . 3 . . 1 15 . . . 3 15 . . 3 5 2 2 . . . . Guns 108 | . 11 2 . 2 12 . 18 . 3 . 11 . 7 1 9 1 4 . 5 3 7 . 12 . Cannons 48 | . . . . . . . . . . . 8 . 3 7 10 1 4 10 . . . . . 5 AOE 43 | . . . . . 19 . 1 . . . . . . . . . 6 9 . . . . . 8 Classes Destroyed 19 | . 3 . . 1 7 . 2 . 1 . 1 . . 1 . . . 1 . . . . . 2 Worker 20 | . . . . 1 3 . . . . . . . . 8 . . . 7 . 1 . . . . Builder 9 | . . . . . 4 . . . . . . . . 3 . . . 2 . . . . . . Tunneler 3 | . . . . . 2 . . . . . . . . 1 . . . . . . . . . . Hauler 3 | . . . . . 1 1 . . . . . . . 1 . . . . . . . . . . Recycler 5 | . 1 . . . . . . . . . . . . 3 . . . 1 . . . . . . Mechanic 2 | . . . . . 1 . . . . . . . . . . . . 1 . . . . . . Operator 3 | . . . . . 2 1 . . . . . . . . . . . . . . . . . . Watcher 3 | . . . . . 2 . . . . . . . . 1 . . . . . . . . . . Swarmer 78 | . 6 . . . 17 . 9 . 5 . 8 . 6 4 5 . 6 4 . . . . 8 . Grunt 116 | . 5 2 . 2 13 . 5 . 9 . 7 . 4 8 10 3 7 13 8 3 4 . 3 10 Brawler 4 | . . . . . . . . . 2 . 1 . . . 1 . . . . . . . . . Duelist 8 | . . . . . . . 1 . . . 1 . . . . . . 2 . . 1 . . 3 Sentry 19 | . . . . . 4 . 3 1 3 . . . 1 3 . . 2 . 1 . . . 1 . Specialist 1 | . . . . . . . . . . . . . . . . . . . . . . . . 1 Hunter 10 | . . . . . . . 1 . . . 1 . 2 . 4 . . . 2 . . . . . Programmer 24 | . . . . . . . . . . . . . . 9 . . 1 4 . 3 2 . 2 3 Heavy 2 | . . . . . . . . . . . . . . . . . . 2 . . . . . . Behemoth 5 | . . . . . . . . . . . 1 . . . . 1 2 . . . . . 1 . Executioner 2 | . . . . . . . . . . . . . . . . . . . . . . . . 2 Best Kill Streak 19 | . 5 2 . 2 9 1 8 1 4 . 6 . 4 5 5 1 5 19 6 2 3 . 3 19 Combat Bots Only 19 | . 5 2 . 2 6 . 8 1 4 . 6 . 4 5 5 1 5 11 6 2 3 . 3 19 Max Kills in Single Turn 4 | . 2 1 . 1 4 1 2 1 1 . 1 . 1 1 1 1 2 3 1 1 1 . 1 4 Gunslinging 1 | . 1 . . . . . . . . . . . . . . . . . . . . . . . Exploded 4 | . . . . . 3 . 1 . . . . . . . . . 2 3 . . . . . 4 Melee 1 | . . . . . 1 . . 1 1 . . . 1 1 . . 1 1 1 1 . . . . Uniques/NPCs Destroyed . | . . . . . . . . . . . . . . . . . . . . . . . . . Combat | -11 -10 -10 -10 -9 -8 -7 -7 -7 -7 -6 -6 -6 -6 -5 -5 -4 -4 -3 -3 -3 -3 -2 -2 -2 -------- Run | Scr Mat Min Exi Min Mat Fac Gar Fac Gar Fac Gar Fac Gar Fac Gar Fac Gar Res Gar Res Gar Res Gar Tes Damage Taken 29497 | . 318 48 . 87 2745 . 1345 45 995 73 633 . 1144 2035 1520 207 489 4048 3408 1048 2930 76 2513 3790 Core 3217 | . 31 11 . 15 290 . 69 . 116 10 60 . 61 123 115 59 49 306 279 22 150 . 250 1201 Absorbed by Shields 1996 | . . . . . . . . . . . . . . . . . 179 110 247 242 445 . 577 196 Reduced by Siege Mode 193 | . . . . . . . . . . . . . . . . . . . . . . . 193 . Core Remaining (%) 73 | 100 . . . 77 47 . . . 73 . . . 84 . 76 . 90 . . . 41 . . . Volleys Fired 771 | . 32 4 . 7 83 8 40 2 32 11 52 4 51 44 44 32 25 57 36 14 25 3 142 23 Largest 5 | . 2 2 . 2 2 1 3 1 3 1 4 3 3 2 4 3 1 1 5 4 3 1 1 1 Hottest 145 | . 40 40 . 40 75 23 79 5 76 5 92 69 76 48 99 76 49 80 145 110 80 10 75 130 Shots Fired 1352 | . 61 8 . 14 141 9 88 2 44 11 124 6 117 63 131 44 40 104 79 40 56 3 145 22 Gun 903 | . 59 8 . 14 115 8 83 . 24 . 93 3 94 23 81 15 8 3 63 35 49 . 118 7 Cannon 141 | . . . . . . 1 . . . . 17 . 6 10 35 2 15 47 . . . . . 8 Launcher 55 | . 2 . . . 26 . . . . . . . . . . . 9 14 1 . . . . 3 Special 253 | . . . . . . . 5 2 20 11 14 3 17 30 15 27 8 40 15 5 7 3 27 4 Kinetic 896 | . 59 8 . 14 112 9 72 . 24 . 110 3 100 33 115 17 23 50 63 35 49 . . . Thermal 118 | . . . . . 3 . . . . . . . . . 1 . . . . . . . 105 9 Explosive 48 | . 2 . . . 26 . . . . . . . . . . . 9 11 . . . . . . Electromagnetic 37 | . . . . . . . 11 . . . . . . . . . . 3 1 . . . 13 9 Robot Hit Streak 23 | . 10 6 . 8 18 11 22 10 16 11 12 3 17 23 12 8 13 9 12 13 13 15 18 8 Robot Miss Streak 7 | . 3 1 . 1 1 1 7 . 2 1 3 2 3 3 4 4 1 4 5 3 3 . 3 3 Penetration Max 1 | . . . . . . . . . . . . . . 1 . . . 1 . . . . . . Secondary Targets 17 | . 1 1 . 1 . . 4 . 1 . 2 . 2 . 3 . . . 1 . 1 . . . Max Gunslinging Chain 1 | . 1 1 . 1 . . 1 . 1 . 1 . 1 . 1 . . . 1 . 1 . . . Capacitor 119 | . . . . . . . . . . . . . . . . . . . . . . . 108 11 Autonomous 134 | . . . . . . 1 . . . . 17 . 6 10 35 2 15 48 . . . . . . Shots Hit Robots 1167 | . 40 6 . 12 107 10 74 6 75 12 84 3 75 115 91 27 47 96 76 42 48 3 103 15 Core Hits 579 | . 18 4 . 6 84 3 71 1 23 . 30 1 25 32 29 6 31 70 30 13 25 . 28 49 Critical Kills 4 | . . . . . . . . . . . 1 . . . 1 . . . 1 . . . . 1 Critical Parts Destroyed 10 | . . . . . 1 . . . 1 . . . . . 1 1 . . 3 1 2 . . . Critical Strikes 40 | . . . . . 2 . 1 . 4 . 2 . 1 2 7 1 4 5 4 3 2 . 1 1 Meltdown 1 | . . . . . . . . . . . . . . . . . . . . . . . . 1 Destroy 10 | . . . . . 1 . . . 1 . 1 . . . 2 1 . . 1 1 2 . . . Blast 11 | . . . . . . . . . . . 1 . 1 . 5 . 1 3 . . . . . . Corrupt 2 | . . . . . . . 1 . . . . . . . . . . . . . . . 1 . Smash 3 | . . . . . . . . . . . . . . . . . . . 3 . . . . . Sever 12 | . . . . . . . . . 3 . . . . 2 . . 3 2 . 2 . . . . Impale 1 | . . . . . 1 . . . . . . . . . . . . . . . . . . . Melee Attacks 297 | . . . . . 9 2 . 7 69 4 . . 7 87 . . 23 35 32 18 4 . . . Impact 18 | . . . . . . . . . . . . . . . . . . . 18 . . . . . Slashing 250 | . . . . . . . . 7 60 2 . . 5 87 . . 23 35 14 13 4 . . . Piercing 9 | . . . . . 9 . . . . . . . . . . . . . . . . . . . Sneak Attacks 103 | . . . . . . 2 . 4 23 2 . . 3 36 . . 16 9 2 6 . . . . Combat Hostiles 62 | . . . . . . . . 4 23 . . . 3 13 . . 10 5 2 2 . . . . Follow-up Attacks 2 | . . . . . . . . . . . . . . . . . . . 2 . . . . . Damage Inflicted 43273 | . 526 92 . 159 3654 203 1337 248 2254 . 2053 12 1454 6317 3028 432 3798 7877 1965 1129 981 . 2846 2908 Guns 12743 | . 526 92 . 159 1253 103 1252 . 317 . 897 12 802 345 1198 235 150 96 849 583 941 . 2838 95 Cannons 9829 | . . . . . . 100 . . . . 1156 . 431 911 1830 197 1274 3255 . . . . . 675 Explosions 9112 | . . . . . 2248 . 85 . . . . . . . . . 1223 3391 46 . . . . 2119 Melee 11552 | . . . . . 145 . . 248 1937 . . . 221 5061 . . 1151 1135 1070 546 38 . . . Ramming 37 | . . . . . 8 . . . . . . . . . . . . . . . 2 . 8 19 Kinetic 18739 | . 526 92 . 159 1194 203 1086 . 317 . 2053 12 1233 1256 3028 432 1424 3351 849 583 941 . . . Thermal 4505 | . . . . . 100 . 85 . . . . . . . . . . . . . . . 2630 1690 Explosive 6571 | . . . . . 2194 . . . . . . . . . . . 1223 3154 . . . . . . Electromagnetic 1869 | . . . . . 13 . 166 . . . . . . . . . . 237 46 . . . 208 1199 Impact 561 | . . . . . . . . . . . . . . . . . . . 561 . . . . . Slashing 10846 | . . . . . . . . 248 1937 . . . 221 5061 . . 1151 1135 509 546 38 . . . Piercing 145 | . . . . . 145 . . . . . . . . . . . . . . . . . . . Highest Corruption 19 | . . . . . . . . . . . . . . 4 13 . . 6 7 12 12 . 11 19 Average Corruption 6 | . . . . . . . . . . . . . . 1 1 . . 4 6 10 12 . 10 12 Corruption Purged 7 | . . . . . . . . . . . . . . 7 . . . . . . . . . . Corruption Blocked . | . . . . . . . . . . . . . . . . . . . . . . . . . Effects 217 | . . . . . . . . . . . . . . 10 23 . . 19 40 30 21 . 61 13 Message Errors 51 | . . . . . . . . . . . . . . 3 9 . . 2 11 8 2 . 16 . Matter Fused 54 | . . . . . . . . . . . . . . 3 6 . . 3 9 5 6 . 20 2 Heat Flow Errors 28 | . . . . . . . . . . . . . . 2 2 . . 2 7 2 5 . 6 2 Energy Discharges 25 | . . . . . . . . . . . . . . . 3 . . 5 7 3 2 . 5 . Parts Rejected 3 | . . . . . . . . . . . . . . . . . . 1 . 2 . . . . Data Loss (minor) 21 | . . . . . . . . . . . . . . 1 2 . . 3 4 3 1 . 4 3 Data Loss (major) 9 | . . . . . . . . . . . . . . 1 1 . . 1 1 . 1 . 3 1 Misfires 9 | . . . . . . . . . . . . . . . . . . 1 1 3 . . 4 . Alerts 3 | . . . . . . . . . . . . . . . . . . . . 1 1 . . 1 Misdirections 6 | . . . . . . . . . . . . . . . . . . . . 1 . . 2 3 Weapon Failures 8 | . . . . . . . . . . . . . . . . . . 1 . 2 3 . 1 1 Overload Shots . | . . . . . . . . . . . . . . . . . . . . . . . . . Overflow Damage 2861 | . . . . . 118 . . 20 70 . 142 . 115 1250 207 . 69 601 93 23 . . . 153 Projectiles 1027 | . . . . . . . . . . . 142 . 65 138 207 . . 356 . . . . . 119 Explosions 358 | . . . . . 118 . . . . . . . . . . . 46 160 . . . . . 34 Melee 1476 | . . . . . . . . 20 70 . . . 50 1112 . . 23 85 93 23 . . . . Knockbacks 31 | . . . . . . . . . . . 2 . 1 . 11 . 1 13 3 . . . . . Impact 3 | . . . . . . . . . . . . . . . . . . . 3 . . . . . Kinetic 26 | . . . . . . . . . . . 2 . 1 . 10 . 1 12 . . . . . . Secondary 2 | . . . . . . . . . . . . . . . 1 . . 1 . . . . . . Self-Inflicted Damage 826 | . 57 . . . 351 . 24 . . . . . . . . . . 255 33 . . . . 106 Shots 32 | . 2 . . . 11 . 1 . . . . . . . . . . 11 3 . . . . 4 Rammed 8 | . . . . . 1 . . . . . . . . . . . . . . . 2 . 1 4 Targets Rammed 8 | . . . . . 1 . . . . . . . . . . . . . . . 2 . 1 4 Kicked . | . . . . . . . . . . . . . . . . . . . . . . . . . Crushed . | . . . . . . . . . . . . . . . . . . . . . . . . . Highest Temperature 305 | . 2 2 . 2 51 . 71 . 57 . 102 20 55 247 259 . . 184 259 99 263 . 305 184 Average Temperature 72 | . 2 2 . 2 23 . 14 . 31 . 34 15 15 114 68 . . 52 76 17 77 . 124 59 Received Heat Transfer 4717 | . 99 30 . 48 963 . 288 18 165 18 132 . 162 210 342 12 54 453 435 219 474 9 200 386 Siege Activations 3 | . . . . . . . . . . . . . . . . . 1 . . . . . 2 . Total Turns 102 | . . . . . . . . . . . . . . . . . 9 . . . . . 93 . Longest Duration 54 | . . . . . . . . . . . . . . . . . 9 . . . . . 54 . Robots Corrupted 4 | . . . . . . . . . . . . . . . . . . . . . . . . 4 Combat Hostiles 4 | . . . . . . . . . . . . . . . . . . . . . . . . 4 Parts Fried 18 | . . . . . . . . . . . . . . . . . . . 4 . . . 1 13 Impact Corruptions 5 | . . . . . . . . . . . . . . . . . . . 5 . . . . . Robots Melted 1 | . . . . . . . . . . . . . . . . . . . . . . . . 1 Combat Hostiles 1 | . . . . . . . . . . . . . . . . . . . . . . . . 1 Parts Melted 7 | . . . . . . . . . 1 . . . . . . . . . . 1 . . 2 3 Heat Transferred 4007 | . . . . . 161 . 100 . . . . . . . . . . . . . . . 2696 1050 Parts Sabotaged . | . . . . . . . . . . . . . . . . . . . . . . . . . Parts Stolen . | . . . . . . . . . . . . . . . . . . . . . . . . . Parts Stripped . | . . . . . . . . . . . . . . . . . . . . . . . . . Power Chain Reactions 4 | . . . . . . . 1 . . . . . . . . . . . . . . . . 3 Missiles Intercepted . | . . . . . . . . . . . . . . . . . . . . . . . . . Alert | -11 -10 -10 -10 -9 -8 -7 -7 -7 -7 -6 -6 -6 -6 -5 -5 -4 -4 -3 -3 -3 -3 -2 -2 -2 ------- Run | Scr Mat Min Exi Min Mat Fac Gar Fac Gar Fac Gar Fac Gar Fac Gar Fac Gar Res Gar Res Gar Res Gar Tes Peak Influence 2275 | . 336 142 . 50 813 364 887 517 951 516 601 315 576 451 749 437 1150 1561 1751 1109 1123 640 832 2275 Initial 1170 | . . 92 . . 1 346 263 465 361 499 . 315 21 302 116 392 10 646 1170 984 726 614 465 468 Average 544 | . 173 90 . 28 317 353 669 484 606 200 351 216 320 176 453 146 821 957 1519 979 844 622 631 1831 Maximum Alert Level 5 | . 1 . . . 3 1 3 2 3 2 2 1 2 2 3 2 4 4 5 4 4 2 3 5 Low Security (%) 28 | . 62 100 . 100 47 . . . . 67 27 33 27 74 9 85 7 . . . . . . . Level 1 15 | . 37 . . . 5 100 16 . 14 1 31 66 38 20 41 7 4 . . . . . . . Level 2 25 | . . . . . 39 . 29 100 53 31 41 . 34 4 34 7 21 14 . . . 100 71 . Level 3 18 | . . . . . 7 . 54 . 31 . . . . . 13 . 39 48 . 90 98 . 28 . Level 4 7 | . . . . . . . . . . . . . . . . . 27 36 59 9 1 . . . Level 5 2 | . . . . . . . . . . . . . . . . . . . 40 . . . . . High Security . | . . . . . . . . . . . . . . . . . . . . . . . . . Max Security 1 | . . . . . . . . . . . . . . . . . . . . . . . . 99 Squads Dispatched 46 | . 3 . . . 5 1 . . . 1 . 1 . 5 . 1 . 13 . 4 . . . 12 Investigation 6 | . 3 . . . 1 . . . . . . . . . . . . 1 . 1 . . . . Extermination 8 | . . . . . . 1 . . . 1 . . . 3 . . . 1 . 2 . . . . Reinforcement 12 | . . . . . 2 . . . . . . 1 . 2 . 1 . 6 . . . . . . Assault 20 | . . . . . 2 . . . . . . . . . . . . 5 . 1 . . . 12 Garrison . | . . . . . . . . . . . . . . . . . . . . . . . . . Intercept . | . . . . . . . . . . . . . . . . . . . . . . . . . Searches Triggered . | . . . . . . . . . . . . . . . . . . . . . . . . . Construction Impeded 2 | . . . . . 1 . . . . . . . . . . . . 1 . . . . . . Haulers Reinforced 3 | . . . . . . . . . . . . . . 1 . . . 2 . . . . . . Active Scanning Responses . | . . . . . . . . . . . . . . . . . . . . . . . . . Cargo Convoy Interrupts . | . . . . . . . . . . . . . . . . . . . . . . . . . Stealth | -11 -10 -10 -10 -9 -8 -7 -7 -7 -7 -6 -6 -6 -6 -5 -5 -4 -4 -3 -3 -3 -3 -2 -2 -2 --------- Run | Scr Mat Min Exi Min Mat Fac Gar Fac Gar Fac Gar Fac Gar Fac Gar Fac Gar Res Gar Res Gar Res Gar Tes Distress Signals 15 | . . . . . 5 . . . . . . . . 3 . 1 . 2 . 1 . . . 3 Communications Jammed . | . . . . . . . . . . . . . . . . . . . . . . . . . Distress Signals . | . . . . . . . . . . . . . . . . . . . . . . . . . Times Spotted 568 | . 19 2 . 2 51 . 24 1 39 3 28 3 32 49 29 12 29 66 25 21 27 2 33 71 Peak Tracking Total 29 | . 5 2 . 2 8 1 6 1 6 2 6 2 10 6 6 4 6 9 6 7 8 1 7 29 Tactical Retreats 29 | . . . . . 1 . 1 . 1 . . . 3 2 . . . 8 1 4 3 . 1 4 Traps | -11 -10 -10 -10 -9 -8 -7 -7 -7 -7 -6 -6 -6 -6 -5 -5 -4 -4 -3 -3 -3 -3 -2 -2 -2 ------- Run | Scr Mat Min Exi Min Mat Fac Gar Fac Gar Fac Gar Fac Gar Fac Gar Fac Gar Res Gar Res Gar Res Gar Tes Traps Triggered 28 | . 1 . . . 1 . . . 1 . . . 1 1 10 . 1 2 3 1 . . 6 . Indirectly . | . . . . . . . . . . . . . . . . . . . . . . . . . Trap Hack Attempts . | . . . . . . . . . . . . . . . . . . . . . . . . . Triggered . | . . . . . . . . . . . . . . . . . . . . . . . . . Disarmed . | . . . . . . . . . . . . . . . . . . . . . . . . . Reprogrammed . | . . . . . . . . . . . . . . . . . . . . . . . . . Reused . | . . . . . . . . . . . . . . . . . . . . . . . . . Traps Extracted . | . . . . . . . . . . . . . . . . . . . . . . . . . Installed . | . . . . . . . . . . . . . . . . . . . . . . . . . Triggered 1 | . . . . . . . . . . . . . . . . . . . . . . . . 1 Machines | -11 -10 -10 -10 -9 -8 -7 -7 -7 -7 -6 -6 -6 -6 -5 -5 -4 -4 -3 -3 -3 -3 -2 -2 -2 ---------- Run | Scr Mat Min Exi Min Mat Fac Gar Fac Gar Fac Gar Fac Gar Fac Gar Fac Gar Res Gar Res Gar Res Gar Tes Machines Disabled 43 | . . . . . 7 . 2 . 4 . 3 . 4 2 4 . 6 . 4 . 1 . 5 1 Max in Single Turn 2 | . . . . . 2 . 1 . 1 . 1 . 1 . 1 . 1 . 1 . 1 . 1 1 Garrison Access 2 | . . . . . 1 . . . . . . . . . . . . 1 . . . . . . Garrison Relay 30 | . . . . . . . 2 . 4 . 3 . 4 . 4 . 5 . 3 . 1 . 4 . Machines Sabotaged . | . . . . . . . . . . . . . . . . . . . . . . . . . Garrisons Compromised . | . . . . . . . . . . . . . . . . . . . . . . . . . Overloaded Fab Kills . | . . . . . . . . . . . . . . . . . . . . . . . . . Hacking | -11 -10 -10 -10 -9 -8 -7 -7 -7 -7 -6 -6 -6 -6 -5 -5 -4 -4 -3 -3 -3 -3 -2 -2 -2 --------- Run | Scr Mat Min Exi Min Mat Fac Gar Fac Gar Fac Gar Fac Gar Fac Gar Fac Gar Res Gar Res Gar Res Gar Tes Machines Accessed 41 | . 5 . 5 . 11 2 . 1 . 3 . 2 . 4 . 2 . 1 . 3 . 2 . . Terminals 23 | . 3 . . . 11 1 . . . 1 . . . 3 . 1 . . . 2 . 1 . . Fabricators 1 | . . . . . . . . . . 1 . . . . . . . . . . . . . . Repair Stations . | . . . . . . . . . . . . . . . . . . . . . . . . . Recycling Units 3 | . 2 . . . . . . . . . . 1 . . . . . . . . . . . . Scanalyzers . | . . . . . . . . . . . . . . . . . . . . . . . . . Garrison Access 9 | . . . . . . 1 . 1 . 1 . 1 . 1 . 1 . 1 . 1 . 1 . . Total Hacks 90 | . 14 . 18 . 27 6 . 1 . 4 . 4 . 5 . 3 . 1 . 3 . 4 . . Successful 50 | . 7 . 18 . 8 3 . 1 . 1 . 3 . 2 . 3 . 1 . 1 . 2 . . Failed 40 | . 7 . . . 19 3 . . . 3 . 1 . 3 . . . . . 2 . 2 . . Catastrophic 13 | . . . . . 6 . . . . 2 . 1 . 2 . . . . . 1 . 1 . . Database Lockouts . | . . . . . . . . . . . . . . . . . . . . . . . . . Manual 50 | . 12 . 1 . 22 3 . . . 3 . 1 . 4 . 1 . . . 2 . 1 . . Terminals 56 | . 12 . . . 27 4 . . . 2 . . . 4 . 2 . . . 2 . 3 . . Fabricators 1 | . . . . . . . . . . 1 . . . . . . . . . . . . . . Repair Stations . | . . . . . . . . . . . . . . . . . . . . . . . . . Recycling Units 4 | . 2 . . . . . . . . . . 2 . . . . . . . . . . . . Scanalyzers . | . . . . . . . . . . . . . . . . . . . . . . . . . Garrison Access 11 | . . . . . . 2 . 1 . 1 . 2 . 1 . 1 . 1 . 1 . 1 . . Terminal Hacks 28 | . 3 . 18 . 5 1 . . . . . . . . . 1 . . . . . . . . Record 17 | . . . 17 . . . . . . . . . . . . . . . . . . . . . Robot Analysis 3 | . 1 . . . 1 1 . . . . . . . . . . . . . . . . . . Branch Access Points 1 | . 1 . . . . . . . . . . . . . . . . . . . . . . . Terminal Index 1 | . . . . . 1 . . . . . . . . . . . . . . . . . . . Garrison Index 1 | . . . . . 1 . . . . . . . . . . . . . . . . . . . Registered Components 1 | . . . . . 1 . . . . . . . . . . . . . . . . . . . Zone Layout 3 | . 1 . . . 1 . . . . . . . . . . 1 . . . . . . . . EX-Prototype ID Bank 1 | . . . 1 . . . . . . . . . . . . . . . . . . . . . Fabricator Hacks . | . . . . . . . . . . . . . . . . . . . . . . . . . Repair Station Hacks . | . . . . . . . . . . . . . . . . . . . . . . . . . Recycling Unit Hacks 2 | . . . . . . . . . . . . 2 . . . . . . . . . . . . Report Inventory 1 | . . . . . . . . . . . . 1 . . . . . . . . . . . . Retrieve Matter 1 | . . . . . . . . . . . . 1 . . . . . . . . . . . . Scanalyzer . | . . . . . . . . . . . . . . . . . . . . . . . . . Garrison Access Hacks 9 | . . . . . . 1 . 1 . 1 . 1 . 1 . 1 . 1 . 1 . 1 . . Unlock Access 9 | . . . . . . 1 . 1 . 1 . 1 . 1 . 1 . 1 . 1 . 1 . . Unauthorized Hacks 11 | . 4 . . . 3 1 . . . . . . . 1 . 1 . . . . . 1 . . Terminals 9 | . 2 . . . 3 1 . . . . . . . 1 . 1 . . . . . 1 . . Assimilate 2 | . . . . . 1 . . . . . . . . 1 . . . . . . . . . . Botnet 3 | . 1 . . . 1 1 . . . . . . . . . . . . . . . . . . Operators 4 | . 1 . . . 1 . . . . . . . . . . 1 . . . . . 1 . . Fabricators . | . . . . . . . . . . . . . . . . . . . . . . . . . Repair Stations . | . . . . . . . . . . . . . . . . . . . . . . . . . Recycling Units 2 | . 2 . . . . . . . . . . . . . . . . . . . . . . . Tunnel 2 | . 2 . . . . . . . . . . . . . . . . . . . . . . . Scanalyzers . | . . . . . . . . . . . . . . . . . . . . . . . . . Garrison Access . | . . . . . . . . . . . . . . . . . . . . . . . . . Data Cores Recovered 3 | . . . . . 2 1 . . . . . . . . . . . . . . . . . . Used 3 | . . . . . 2 1 . . . . . . . . . . . . . . . . . . Hacking Detections 29 | . 3 . . . 11 2 . . . 2 . 1 . 4 . 1 . 1 . 2 . 2 . . Full Trace Events . | . . . . . . . . . . . . . . . . . . . . . . . . . Feedback Events . | . . . . . . . . . . . . . . . . . . . . . . . . . Feedback Blocked . | . . . . . . . . . . . . . . . . . . . . . . . . . Robot Schematics Acquired . | . . . . . . . . . . . . . . . . . . . . . . . . . Robots Built . | . . . . . . . . . . . . . . . . . . . . . . . . . Authchips . | . . . . . . . . . . . . . . . . . . . . . . . . . Time . | . . . . . . . . . . . . . . . . . . . . . . . . . Total Robot Build Rating . | . . . . . . . . . . . . . . . . . . . . . . . . . Part Schematics Acquired . | . . . . . . . . . . . . . . . . . . . . . . . . . Parts Built . | . . . . . . . . . . . . . . . . . . . . . . . . . Authchips . | . . . . . . . . . . . . . . . . . . . . . . . . . Time . | . . . . . . . . . . . . . . . . . . . . . . . . . Total Part Build Rating . | . . . . . . . . . . . . . . . . . . . . . . . . . Parts Repaired . | . . . . . . . . . . . . . . . . . . . . . . . . . Time . | . . . . . . . . . . . . . . . . . . . . . . . . . Parts Recycled . | . . . . . . . . . . . . . . . . . . . . . . . . . Recycled Matter . | . . . . . . . . . . . . . . . . . . . . . . . . . Retrieved Matter . | . . . . . . . . . . . . . . . . . . . . . . . . . Retrieved Components . | . . . . . . . . . . . . . . . . . . . . . . . . . Parts Scanalyzed . | . . . . . . . . . . . . . . . . . . . . . . . . . Part Schematics Acquired . | . . . . . . . . . . . . . . . . . . . . . . . . . Parts Damaged . | . . . . . . . . . . . . . . . . . . . . . . . . . Bothacking | -11 -10 -10 -10 -9 -8 -7 -7 -7 -7 -6 -6 -6 -6 -5 -5 -4 -4 -3 -3 -3 -3 -2 -2 -2 ------------ Run | Scr Mat Min Exi Min Mat Fac Gar Fac Gar Fac Gar Fac Gar Fac Gar Fac Gar Res Gar Res Gar Res Gar Tes Used RIF Installer 9 | . . . . . . . 1 . 1 . 1 . 1 . 1 . 1 . 1 . 1 . 1 . Coupler Efficiency 1 | . . . . . . . . . . . . . . . 1 . . . . . . . . . Command Fork 2 | . . . . . . . . . 1 . . . . . . . 1 . . . . . . . Robot Detection 1 | . . . . . . . . . . . . . . . . . . . . . 1 . . . Watcher Feeds 1 | . . . . . . . . . . . 1 . . . . . . . . . . . . . Structural Interface 1 | . . . . . . . . . . . . . . . . . . . 1 . . . . . Program Shield 1 | . . . . . . . . . . . . . 1 . . . . . . . . . . . Autoassimilate 1 | . . . . . . . . . . . . . . . . . . . . . . . 1 . Robots Hacked 157 | . . . . . . 1 4 1 22 4 11 1 14 19 8 10 7 23 5 5 5 1 14 2 Non-combat 28 | . . . . . . 1 . . . 3 . 1 . 6 . 4 . 11 . 1 . . . 1 Combat 129 | . . . . . . . 4 1 22 1 11 . 14 13 8 6 7 12 5 4 5 1 14 1 Robot Hacks Applied 180 | . . . . . . 1 4 2 23 9 11 2 15 24 8 12 7 24 5 7 6 2 15 3 parse_system 2 | . . . . . . . . . 1 . . . . . . . . . . . . . 1 . no_distress 1 | . . . . . . 1 . . . . . . . . . . . . . . . . . . map_walls 6 | . . . . . . . . . . . . . . 1 . 1 . 3 . 1 . . . . map_earth 2 | . . . . . . . . . . . . . . . . . . 2 . . . . . . drop_inventory 6 | . . . . . . . . . . 1 . . . 2 . . . 3 . . . . . . locate_stockpiles 1 | . . . . . . . . . . 1 . . . . . . . . . . . . . . ignore_parts 4 | . . . . . . . . . . . . . . 1 . 1 . 2 . . . . . . purge_threat 9 | . . . . . . . . . . 3 . 2 . 2 . 2 . . . . . . . . disarm_traps 1 | . . . . . . . . . . . . . . 1 . . . . . . . . . . reprogram_traps 1 | . . . . . . . . . . . . . . . . . . . . . . . . 1 block_reporting 1 | . . . . . . . . . . 1 . . . . . . . . . . . . . . map_route 3 | . . . . . . . . . . 1 . . . 1 . . . 1 . . . . . . find_garrison 7 | . . . . . . . . 1 . . . . . 2 . 1 . 1 . 1 . 1 . . wipe_record 5 | . . . . . . . . . 5 . . . . . . . . . . . . . . . reboot_system 26 | . . . . . . . 1 1 6 . 2 . 6 6 . . 2 1 . 1 . . . . go_dormant 1 | . . . . . . . . . . . . . 1 . . . . . . . . . . . overwrite_iff 64 | . . . . . . . 1 . 9 . 8 . 7 5 6 3 4 5 1 1 5 . 8 1 formatsys_low 5 | . . . . . . . . . . 1 . . . 1 . 1 . 1 . . . . . 1 formatsys_high 35 | . . . . . . . 2 . 2 1 1 . 1 2 2 3 1 5 4 3 1 1 6 . Relay Couplers Released 127 | . . . . . . . 10 . 15 . 13 . 18 . 16 . 19 2 11 . 4 . 19 . Machine Destruction 127 | . . . . . . . 10 . 15 . 13 . 18 . 16 . 19 2 11 . 4 . 19 . Attached 62 | . . . . . . . 2 . 6 4 3 1 7 5 4 4 3 8 2 3 3 . 6 1 Fabnet Peak Effective % . | . . . . . . . . . . . . . . . . . . . . . . . . . Robots Rewired 2 | . . . . . . . . . . . . . . . . . . . 1 . . . 1 . Allies Hacked 2 | . . . . . . . . . . . . . . 2 . . . . . . . . . . Hacks Repelled . | . . . . . . . . . . . . . . . . . . . . . . . . . Allies | -11 -10 -10 -10 -9 -8 -7 -7 -7 -7 -6 -6 -6 -6 -5 -5 -4 -4 -3 -3 -3 -3 -2 -2 -2 -------- Run | Scr Mat Min Exi Min Mat Fac Gar Fac Gar Fac Gar Fac Gar Fac Gar Fac Gar Res Gar Res Gar Res Gar Tes Total Allies 128 | . . . . . . . 3 . 13 3 9 . 10 10 9 8 7 18 7 3 7 1 18 2 Largest Group 8 | . . . . . . . 3 2 4 3 5 . 3 3 3 2 4 7 4 1 6 1 7 8 Highest-Rated Group 463 | . . . . . . . 80 48 57 63 114 . 88 102 76 94 190 357 228 64 351 64 418 463 Highest-Rated Ally 148 | . . . . . . . 32 24 24 32 32 . 41 49 49 49 49 64 116 64 116 64 148 64 Total Orders 13 | . . . . . . . 2 2 2 . 4 . 2 . . . . 1 . . . . . . STAY 7 | . . . . . . . 1 1 2 . 2 . 1 . . . . . . . . . . . FOLLOW 5 | . . . . . . . 1 1 . . 2 . 1 . . . . . . . . . . . DROP 1 | . . . . . . . . . . . . . . . . . . 1 . . . . . . Ally Attacks 502 | . . . . . . . 4 . 56 2 42 . 54 32 38 15 42 66 39 11 18 3 41 39 Total Damage 13783 | . . . . . . . 221 . 884 82 606 . 869 921 892 434 1531 2450 1582 502 577 115 707 1410 Kills 76 | . . . . . . . . . 7 1 4 . 8 3 5 2 12 12 8 1 5 . 3 5 Allies Corrupted 4 | . . . . . . . . . . . . . . . . . . 3 . 1 . . . . Allies Melted 1 | . . . . . . . . . . . . . . 1 . . . . . . . . . . Intel | -11 -10 -10 -10 -9 -8 -7 -7 -7 -7 -6 -6 -6 -6 -5 -5 -4 -4 -3 -3 -3 -3 -2 -2 -2 ------- Run | Scr Mat Min Exi Min Mat Fac Gar Fac Gar Fac Gar Fac Gar Fac Gar Fac Gar Res Gar Res Gar Res Gar Tes Robot Analysis Total 3 | . 1 . . . 1 1 . . . . . . . . . . . . . . . . . . Derelict Logs Recovered 2 | . . . . 2 . . . . . . . . . . . . . . . . . . . . Drone Launches . | . . . . . . . . . . . . . . . . . . . . . . . . . Drone Recoveries . | . . . . . . . . . . . . . . . . . . . . . . . . . Exploration | -11 -10 -10 -10 -9 -8 -7 -7 -7 -7 -6 -6 -6 -6 -5 -5 -4 -4 -3 -3 -3 -3 -2 -2 -2 ------------- Run | Scr Mat Min Exi Min Mat Fac Gar Fac Gar Fac Gar Fac Gar Fac Gar Fac Gar Res Gar Res Gar Res Gar Tes Turns Passed 21710 | . 673 512 807 633 1349 322 928 248 1249 513 1260 330 1004 2509 1478 594 1694 1014 1184 759 439 311 1609 291 Spaces Moved 11461 | 1 352 310 500 375 592 168 480 134 594 262 637 198 494 1233 721 300 929 489 561 479 232 200 1046 174 Core 124 | . . . . . . . . . . . . . . . . . . . . . 64 5 . 55 Treads 8156 | . 333 310 500 375 412 168 480 134 594 262 637 198 494 88 342 300 929 489 524 . 165 . 303 119 Legs 1644 | 1 19 . . . 180 . . . . . . . . . 267 . . . 37 479 3 195 463 . Wheels 1257 | . . . . . . . . . . . . . . 1145 112 . . . . . . . . . Hover . | . . . . . . . . . . . . . . . . . . . . . . . . . Flight 280 | . . . . . . . . . . . . . . . . . . . . . . . 280 . Fastest Speed 10 | 120 120 160 160 160 120 162 160 162 160 160 160 160 160 95 95 162 162 159 120 117 50 50 10 50 Average Speed 148 | 120 157 160 160 160 142 162 161 162 160 160 166 160 160 126 163 162 162 161 166 118 129 118 105 128 Slowest Speed 330 | 120 160 160 160 160 225 162 162 162 162 160 240 160 240 240 330 164 162 162 240 120 170 120 169 170 Overloaded Moves . | . . . . . . . . . . . . . . . . . . . . . . . . . Propulsion Burnouts . | . . . . . . . . . . . . . . . . . . . . . . . . . Robots Hopped . | . . . . . . . . . . . . . . . . . . . . . . . . . Cave-ins Triggered . | . . . . . . . . . . . . . . . . . . . . . . . . . Exploration Rate (%) 46 | 2 56 58 92 85 70 5 60 5 73 7 72 7 77 35 81 12 74 15 73 18 49 8 90 38 Regions Visited 24 Branch Regions 4 Pre-discovered Areas 4 | . 2 . 1 1 . . . . . . . . . . . . . . . . . . . . Known Exits Taken 11 | . 1 . . . 1 1 . 1 . 1 . 1 . 1 . 1 . 1 . 1 . 1 . . Unknown Exits Taken 4 | 1 . 1 1 1 . . . . . . . . . . . . . . . . . . . . Scrap Searched 4 | . . 1 . 3 . . . . . . . . . . . . . . . . . . . . Spaces Dug 56 | . 11 . . . 15 . . 3 . 2 . . . 13 . . . 8 2 2 . . . . Terrain Destroyed 525 | . 11 . . . 182 . . 3 . 2 2 . 1 14 8 1 127 143 8 2 2 . . 19 Melee 29 | . . . . . . . . 3 . 2 . . . 12 . . . 8 2 2 . . . . Projectile 30 | . . . . . . . . . . . 2 . 1 2 8 1 . 8 5 . 2 . . 1 AOE 465 | . 11 . . . 182 . . . . . . . . . . . 127 127 . . . . . 18 Terrain Rammed . | . . . . . . . . . . . . . . . . . . . . . . . . . Walls Destroyed . | . . . . . . . . . . . . . . . . . . . . . . . . . Machines Disabled . | . . . . . . . . . . . . . . . . . . . . . . . . . Actions | -11 -10 -10 -10 -9 -8 -7 -7 -7 -7 -6 -6 -6 -6 -5 -5 -4 -4 -3 -3 -3 -3 -2 -2 -2 --------- Run | Scr Mat Min Exi Min Mat Fac Gar Fac Gar Fac Gar Fac Gar Fac Gar Fac Gar Res Gar Res Gar Res Gar Tes Total 14947 | . 409 318 509 395 945 209 554 155 767 346 778 209 637 1980 958 382 1070 628 702 631 326 270 1537 232 Wait 1435 | . 12 2 . 3 180 7 4 . 25 55 34 4 22 545 81 7 33 6 29 90 31 52 209 4 Move 11444 | . 351 309 499 374 591 168 479 134 593 262 636 197 493 1233 720 300 927 489 560 479 231 200 1045 174 Hop . | . . . . . . . . . . . . . . . . . . . . . . . . . Pick Up 183 | . 6 . 5 5 13 6 13 4 12 3 16 1 16 8 15 9 12 3 14 5 7 1 8 1 Fast Attach 178 | . . 2 1 2 15 4 7 . 4 2 4 . 9 17 12 7 10 6 17 8 2 11 31 7 Attach 138 | . . . . . 11 8 4 1 7 4 13 1 12 10 13 6 5 11 7 4 10 1 7 3 Detach 29 | . . . . . 2 3 . 1 . . 2 . 1 4 4 1 2 2 4 . 1 . . 2 Swap 99 | . 4 . . . 16 1 4 1 13 2 6 . 8 10 8 6 6 5 2 2 2 . 3 . Drop 227 | . 4 1 4 4 24 2 1 4 12 3 15 2 14 20 9 14 26 13 4 9 11 2 26 3 Fire 771 | . 32 4 . 7 83 8 40 2 32 11 52 4 51 44 44 32 25 57 36 14 25 3 142 23 Melee 294 | . . . . . 9 2 . 7 69 4 . . 7 87 . . 23 35 29 18 4 . . . Ram 5 | . . . . . . . . . . . . . . . . . . . . . . . . 5 Kick . | . . . . . . . . . . . . . . . . . . . . . . . . . Crush 4 | . . . . . 1 . . . . . . . . . . . . . . . 2 . 1 . Escape Stasis 124 | . . . . . . . . . . . . . . . 52 . . . . . . . 62 10 Rewire 16 | . . . . . . . 2 1 . . . . 4 2 . . 1 1 . 2 . . 3 . Trap . | . . . . . . . . . . . . . . . . . . . . . . . . . Miscellaneous . | . . . . . . . . . . . . . . . . . . . . . . . . . Route ------- -11/Scrapyard -10/Materials -10/Mines (discovered 3 exits: [*Mat x2] / *Exi) -10/Exiles (discovered 2 exits: [*Min x2]) -9/Mines (discovered 2 exits: *Mat x2) -8/Materials (discovered 3 exits: *Fac x3) -7/Factory -7/Garrison (discovered 3 exits: *Fac x3) -7/Factory -7/Garrison (discovered 3 exits: *Fac x3) -6/Factory -6/Garrison (discovered 3 exits: *Fac x3) -6/Factory -6/Garrison (discovered 2 exits: *Fac x2) -5/Factory (discovered 3 exits: *Fac x2 / Gar) -5/Garrison (discovered 3 exits: *Fac x3) -4/Factory (discovered 2 exits: [*Upp] / Gar) -4/Garrison (discovered 3 exits: *Res x3) -3/Research (discovered 2 exits: *Res / Gar) -3/Garrison -3/Research -3/Garrison -2/Research -2/Garrison (discovered 3 exits: [*Tes x3]) -2/Testing History --------- Turn | Location | Event 1 | -11/Scrapyard | Discovered new exit (range 0) 1 | -11/Scrapyard | Entered Materials 142 | -10/Materials | Identified exit to Mines 304 | -10/Materials | Build established: Mutant 674 | -10/Materials | Entered Mines 785 | -10/Mines | Discovered new exit (range 15) 859 | -10/Mines | Found a damaged Exp. Sensor Array with a note attached 862 | -10/Mines | Found Prototype Device 862 | -10/Mines | Identified Exp. Sensor Array 865 | -10/Mines | Discovered new exit (range 9) 1132 | -10/Mines | Deemed a non-threat by the Exiles lab entrance 1134 | -10/Mines | Discovered new exit (range 5) 1186 | -10/Mines | Entered Exiles 1210 | -10/Exiles | Discovered new exit (range 15) 1230 | -10/Exiles | Met 8R-AWN 1254 | -10/Exiles | Met EX-HEX 1308 | -10/Exiles | Met EX-BIN 1350 | -10/Exiles | Aligned with FarCom system 1351 | -10/Exiles | Given EX-Vault access code 1391 | -10/Exiles | Opened EX-Vault 1402 | -10/Exiles | Found Chronowheel 1414 | -10/Exiles | Activated Chronowheel 1425 | -10/Exiles | Found AWS/Autocannon 1517 | -10/Exiles | Warned to stay clear of 0b10 Research branches 1644 | -10/Exiles | Met EX-DEC 1675 | -10/Exiles | Visited The Gauntlet 1900 | -10/Exiles | Learned location of Zion (-7) 1977 | -10/Exiles | Discovered new exit (range 12) 1993 | -10/Exiles | Left Exiles lab with AWS/Autocannon 1993 | -10/Exiles | Entered Mines 1994 | -9/Mines | Learned location of Storage (-7) 2196 | -9/Mines | Learned location of 1 exit from Materials 2241 | -9/Mines | Discovered new exit (range 5) 2284 | -9/Mines | Discovered new exit (range 5) 2321 | -9/Mines | Received a Rocket Launcher from a helpful Derelict 2546 | -9/Mines | Learned Materials emergency access door positions 2559 | -9/Mines | A weapon hastily lodged in a ceiling crevice suddenly fell to the ground 2626 | -9/Mines | Entered Materials 2626 | -8/Materials | Evolved 4 slots: Propulsion x2, Utility x2 2627 | -8/Materials | Identified exit to Factory 2849 | -8/Materials | Discovered exit to Factory (range 14) 3036 | -8/Materials | Build established: Scavenger-Mutant 3596 | -8/Materials | Discovered exit to Factory (range 14) 3814 | -8/Materials | Build established: Mutant 3826 | -8/Materials | First assault squad dispatched 3940 | -8/Materials | Lost 7 parts (1p3n1u2w) 3964 | -8/Materials | Core integrity fell below 50% 3975 | -8/Materials | Entered Factory 3975 | -7/Factory | Evolved 2 slots: Propulsion x1, Weapon x1 4004 | -7/Factory | Lost 5 parts (2n1u2w) 4297 | -7/Factory | Identified exit to Garrison 4297 | -7/Factory | Entered Garrison 4334 | -7/Garrison | Triggered checkpoint 4492 | -7/Garrison | Destroyed 8 combat bots 4512 | -7/Garrison | Triggered checkpoint 4586 | -7/Garrison | Discovered new exit (range 12) 4614 | -7/Garrison | Installed Relay Interface Framework 4684 | -7/Garrison | Triggered checkpoint 4718 | -7/Garrison | Garrison Relay disabled 4806 | -7/Garrison | Triggered checkpoint 4824 | -7/Garrison | Triggered checkpoint 4910 | -7/Garrison | Discovered new exit (range 9) 4932 | -7/Garrison | Triggered checkpoint 4959 | -7/Garrison | Garrison Relay disabled 5102 | -7/Garrison | Discovered new exit (range 8) 5225 | -7/Garrison | Entered Factory 5225 | -7/Factory | Accompanied by 2 allies 5229 | -7/Factory | Build established: Bothacker-Mutant 5473 | -7/Factory | Identified exit to Garrison 5473 | -7/Factory | Entered Garrison 5473 | -7/Garrison | Accompanied by 2 allies 5482 | -7/Garrison | Expanded RIF knowledge: Command Fork 5586 | -7/Garrison | Triggered checkpoint 5740 | -7/Garrison | Garrison Relay disabled 5869 | -7/Garrison | Triggered checkpoint 5882 | -7/Garrison | Triggered checkpoint 5895 | -7/Garrison | Triggered checkpoint 6052 | -7/Garrison | Triggered checkpoint 6068 | -7/Garrison | Garrison Relay disabled 6125 | -7/Garrison | Discovered new exit (range 12) 6253 | -7/Garrison | Discovered new exit (range 9) 6286 | -7/Garrison | Triggered checkpoint 6368 | -7/Garrison | Garrison Relay disabled 6460 | -7/Garrison | Triggered checkpoint 6554 | -7/Garrison | Triggered checkpoint 6636 | -7/Garrison | Garrison Relay disabled 6710 | -7/Garrison | Discovered new exit (range 9) 6722 | -7/Garrison | Entered Factory 6722 | -6/Factory | Evolved 2 slots: Propulsion x1, Weapon x1 7235 | -6/Factory | Identified exit to Garrison 7235 | -6/Factory | Entered Garrison 7235 | -6/Garrison | Accompanied by 3 allies 7356 | -6/Garrison | Triggered checkpoint 7394 | -6/Garrison | Garrison Relay disabled 7520 | -6/Garrison | Spotted B-75 Beast 7524 | -6/Garrison | Destroyed B-75 Beast 7574 | -6/Garrison | Triggered checkpoint 7606 | -6/Garrison | Triggered checkpoint 7615 | -6/Garrison | Triggered checkpoint 7617 | -6/Garrison | Triggered checkpoint 7712 | -6/Garrison | Discovered new exit (range 9) 7736 | -6/Garrison | Expanded RIF knowledge: Watcher Feeds 7783 | -6/Garrison | Build established: Bothacker-Skirmisher 7915 | -6/Garrison | Discovered new exit (range 15) 7941 | -6/Garrison | Triggered checkpoint 7994 | -6/Garrison | Garrison Relay disabled 8121 | -6/Garrison | Discovered new exit (range 10) 8152 | -6/Garrison | Triggered checkpoint 8200 | -6/Garrison | Garrison Relay disabled 8303 | -6/Garrison | Build established: Bothacker-Tank 8495 | -6/Garrison | Entered Factory 8814 | -6/Factory | Identified exit to Garrison 8825 | -6/Factory | Entered Garrison 8833 | -6/Garrison | Expanded RIF knowledge: Program Shield 8876 | -6/Garrison | Triggered checkpoint 8910 | -6/Garrison | Garrison Relay disabled 8964 | -6/Garrison | Triggered checkpoint 8965 | -6/Garrison | Triggered checkpoint 9154 | -6/Garrison | Triggered checkpoint 9159 | -6/Garrison | Build established: Botlord-Mutant 9208 | -6/Garrison | Discovered new exit (range 14) 9227 | -6/Garrison | Triggered checkpoint 9290 | -6/Garrison | Triggered checkpoint 9314 | -6/Garrison | Garrison Relay disabled 9458 | -6/Garrison | Triggered checkpoint 9538 | -6/Garrison | Build established: Botlord-Skirmisher 9550 | -6/Garrison | Garrison Relay disabled 9640 | -6/Garrison | Triggered checkpoint 9712 | -6/Garrison | Triggered checkpoint 9741 | -6/Garrison | Garrison Relay disabled 9811 | -6/Garrison | Discovered new exit (range 10) 9829 | -6/Garrison | Entered Factory 9829 | -5/Factory | Accompanied by 1 ally 9829 | -5/Factory | Evolved 2 slots: Propulsion x2 10158 | -5/Factory | Build established: Botlord-Mutant 10344 | -5/Factory | Discovered new exit (range 103) 10344 | -5/Factory | Discovered new exit (range 149) 11173 | -5/Factory | Lost 3 parts (1n1u1w) 11616 | -5/Factory | Lost 3 parts (3n) 12338 | -5/Factory | Identified exit to Garrison 12338 | -5/Factory | Entered Garrison 12462 | -5/Garrison | Triggered checkpoint 12479 | -5/Garrison | Garrison Relay disabled 12552 | -5/Garrison | Lost 3 parts (3n) 12672 | -5/Garrison | Triggered checkpoint 12678 | -5/Garrison | Triggered checkpoint 12850 | -5/Garrison | Triggered checkpoint 12897 | -5/Garrison | Garrison Relay disabled 12963 | -5/Garrison | Discovered new exit (range 10) 12992 | -5/Garrison | Expanded RIF knowledge: Coupler Efficiency 13090 | -5/Garrison | Triggered checkpoint 13111 | -5/Garrison | Triggered checkpoint 13172 | -5/Garrison | Discovered new exit (range 10) 13212 | -5/Garrison | Triggered checkpoint 13261 | -5/Garrison | Lost 4 parts (1n1u2w) 13262 | -5/Garrison | Triggered checkpoint 13515 | -5/Garrison | Discovered new exit (range 14) 13578 | -5/Garrison | Triggered checkpoint 13597 | -5/Garrison | Build established: Botlord-Skirmisher 13612 | -5/Garrison | Garrison Relay disabled 13812 | -5/Garrison | System corruption reached 10% 13816 | -5/Garrison | Entered Factory 13816 | -4/Factory | Accompanied by 1 ally 13816 | -4/Factory | Evolved 2 slots: Propulsion x2 14096 | -4/Factory | Discovered new exit (range 34) 14108 | -4/Factory | Spotted B-86 Titan 14111 | -4/Factory | Destroyed B-86 Titan 14405 | -4/Factory | Build established: Botlord-Mutant 14410 | -4/Factory | Identified exit to Garrison 14410 | -4/Factory | Entered Garrison 14410 | -4/Garrison | Accompanied by 2 allies 14442 | -4/Garrison | Triggered checkpoint 14489 | -4/Garrison | Garrison Relay disabled 14545 | -4/Garrison | Spotted B-86 Titan 14552 | -4/Garrison | Destroyed B-86 Titan 14598 | -4/Garrison | Triggered checkpoint 14598 | -4/Garrison | Triggered checkpoint 14603 | -4/Garrison | Triggered checkpoint 14734 | -4/Garrison | Discovered new exit (range 10) 14858 | -4/Garrison | Discovered new exit (range 14) 15032 | -4/Garrison | Discovered new exit (range 15) 15091 | -4/Garrison | Expanded RIF knowledge: Command Fork 15194 | -4/Garrison | Spotted B-86 Titan 15199 | -4/Garrison | Destroyed B-86 Titan 15245 | -4/Garrison | Garrison Relay disabled 15294 | -4/Garrison | Triggered checkpoint 15302 | -4/Garrison | Garrison Relay disabled 15454 | -4/Garrison | Triggered checkpoint 15476 | -4/Garrison | Garrison Relay disabled 15616 | -4/Garrison | Triggered checkpoint 15645 | -4/Garrison | Garrison Relay disabled 16104 | -4/Garrison | Entered Research 16104 | -3/Research | Accompanied by 1 ally 16104 | -3/Research | Evolved 2 slots: Propulsion x1, Weapon x1 16353 | -3/Research | Found Gamma Bomb Array 16357 | -3/Research | Discovered new exit (range 54) 16604 | -3/Research | First assault squad dispatched 16762 | -3/Research | Lost 4 parts (1p1n1u1w) 16787 | -3/Research | Destroyed 11 combat bots 16987 | -3/Research | Build established: Botlord-Skirmisher 17081 | -3/Research | Lost 3 parts (1n1u1w) 17118 | -3/Research | Identified exit to Garrison 17118 | -3/Research | Entered Garrison 17126 | -3/Garrison | Expanded RIF knowledge: Structural Interface 17162 | -3/Garrison | Triggered checkpoint 17257 | -3/Garrison | Garrison Relay disabled 17426 | -3/Garrison | Build established: Botlord-Mutant 17487 | -3/Garrison | Spotted B-86 Titan 17497 | -3/Garrison | Triggered checkpoint 17497 | -3/Garrison | Triggered checkpoint 17499 | -3/Garrison | Rewired B-86 Titan 17502 | -3/Garrison | Triggered checkpoint 17543 | -3/Garrison | Triggered checkpoint 17583 | -3/Garrison | Lost 4 parts (1p1n1u1w) 17701 | -3/Garrison | Discovered new exit (range 11) 17780 | -3/Garrison | Triggered checkpoint 17826 | -3/Garrison | Garrison Relay disabled 18022 | -3/Garrison | Triggered checkpoint 18050 | -3/Garrison | Garrison Relay disabled 18302 | -3/Garrison | Entered Research 18302 | -3/Research | Accompanied by 1 ally 18597 | -3/Research | System corruption reached 10% 18598 | -3/Research | First assault squad dispatched 18934 | -3/Research | Build established: Botlord-Skirmisher 19061 | -3/Research | Identified exit to Garrison 19061 | -3/Research | Entered Garrison 19264 | -3/Garrison | Triggered checkpoint 19271 | -3/Garrison | Core integrity fell below 50% 19312 | -3/Garrison | Garrison Relay disabled 19392 | -3/Garrison | Spotted B-86 Titan 19394 | -3/Garrison | Assimilated Titan 8b with formatsys_high 19398 | -3/Garrison | Triggered checkpoint 19399 | -3/Garrison | Triggered checkpoint 19403 | -3/Garrison | Triggered checkpoint 19488 | -3/Garrison | Discovered new exit (range 12) 19498 | -3/Garrison | Expanded RIF knowledge: Robot Detection 19500 | -3/Garrison | Entered Research 19500 | -2/Research | Evolved 2 slots: Power x1, Propulsion x1 19503 | -2/Research | Found Quantum Capacitor 19504 | -2/Research | Lost 11 parts (6n5w) 19668 | -2/Research | Found Prototype Processor 19738 | -2/Research | Build established: Bothacker-Mutant 19772 | -2/Research | Spotted B-90 Cyclops 19811 | -2/Research | Identified exit to Garrison 19811 | -2/Research | Entered Garrison 19913 | -2/Garrison | System corruption reached 10% 19934 | -2/Garrison | Lost 3 parts (3n) 20028 | -2/Garrison | Triggered checkpoint 20050 | -2/Garrison | Garrison Relay disabled 20052 | -2/Garrison | Identified Spectral Analyzer 20102 | -2/Garrison | Triggered checkpoint 20218 | -2/Garrison | Spotted B-90 Cyclops 20252 | -2/Garrison | Triggered checkpoint 20253 | -2/Garrison | Triggered checkpoint 20302 | -2/Garrison | Lost 5 parts (2p3w) 20357 | -2/Garrison | Destroyed B-90 Cyclops 20388 | -2/Garrison | Found Quantum Capacitor 20394 | -2/Garrison | Lost 3 parts (1p2n) 20499 | -2/Garrison | Discovered new exit (range 14) 20602 | -2/Garrison | Triggered checkpoint 20643 | -2/Garrison | Discovered new exit (range 14) 20713 | -2/Garrison | Build established: Bothacker-Skirmisher 20808 | -2/Garrison | Discovered new exit (range 15) 20834 | -2/Garrison | Expanded RIF knowledge: Autoassimilate 20964 | -2/Garrison | Triggered checkpoint 20965 | -2/Garrison | Garrison Relay disabled 21005 | -2/Garrison | Garrison Relay disabled 21010 | -2/Garrison | Triggered checkpoint 21028 | -2/Garrison | Garrison Relay disabled 21033 | -2/Garrison | Triggered checkpoint 21358 | -2/Garrison | Build established: Botlord-Mutant 21420 | -2/Garrison | Entered Testing 21420 | -2/Testing | Accompanied by 7 allies 21421 | -2/Testing | Maximum security lockdown engaged 21444 | -2/Testing | Found Prototype Energy Cannon 21444 | -2/Testing | Identified Null Cannon 21549 | -2/Testing | Found Prototype Launcher 21549 | -2/Testing | Identified Enh. Gamma Bomb Array 21615 | -2/Testing | Spotted Executioner 21630 | -2/Testing | Destroyed Executioner 21638 | -2/Testing | Spotted Executioner 21648 | -2/Testing | Destroyed Executioner 21666 | -2/Testing | Scanned by Researcher 21669 | -2/Testing | Spotted Investigator 21679 | -2/Testing | Destroyed 19 combat bots 21679 | -2/Testing | Core integrity fell below 50% 21700 | -2/Testing | Core integrity fell below 20% 21700 | -2/Testing | Spotted Striker 21701 | -2/Testing | Spotted Striker 21706 | -2/Testing | Spotted Alpha 7 21711 | -2/Testing | Destroyed by G-73 Enforcer with Phase Gun Last Messages --------------- 21680_ The unstable cave ceiling collapses. 21684_ System corrupted: Heat flow error (+130). 21690_ Cld. Q-thruster destroyed. 21694_ Slammed into G-73 Enforcer. 21695_ Relay Coupler [Swarmer] destroyed. 21696_ Slammed into G-73 Enforcer. 21696_ Destabilizing: System corrupted (+2). 21696_ Penetrated by Slug. 21696_ Slug penetrates Wall. 21698_ Penetrated by Slug. 21699_ Slug penetrates Terminal. 21703_ Terminal disabled. 21704_ Slammed into Striker. 21704_ Knocked back. 21707_ Slug penetrates Door. 21709_ System corrupted: Heat flow error (+183). 21710_ Adv. Coolant Injector destroyed. 21710_ Critical hit (Blast). 21710_ Knocked back. 21711_ Slammed into G-73 Enforcer. Map ----- +----------------------------------------------------+ | | | | | | | | | | | | | | | | | | | | | ???????????????????????????????????????????????? | | ???????????????????????????????????????????????? | | ???????????????????????????????????????????????? | | ???????????????????????????????????????????????? | | ???????????????????????????????????????????????? | | ???????????????????????????????????????????????? | | ???????????????????????????????????????????????? | | ???????????????????????????????????????????????? | | ???????????????????????????????????????????????? | | ?????????########??????????????????????????????? | | ?????????#""""""#??????????????????????????????? | | ?????????#""&"""####???????????????????????????? | | ?????????#"" ""##%#???????######??????????????? | | ?????????#"" c#; ######### #??????????????? | | ?????????#"" / K glg Y T #??????????????? | | ?????????#" 7 K%% g@gggY "" #??????????????? | | ?????????#" ## #########bm #??????????????? | | ?????????#""" ####???????##l ####????????????? | | ?????????##### #????????####gg #????????????? | | ?????????????####????????# ggg #????????????? | | ?????????????????????????# Yl #????????????? | | ?????????????????????????# g ####????????????? | | ?????????????????????????####%g#???????????????? | | ???????????????????????????##bg##????????"?????? | | ?????????????###############g ######## """"""" | | ?????????????+ C # """"""" | | ?????????????# Cc / | | ??????????????#+#+########## ##### # | | ??????????????????????????###+####?## # | | ??????????????????????????? ! ?#" # | | ???????????????????????????""" #" """"""""" | | ?????????????????????????# """ " #" """""""" | | ?????????????????????????# """ " " " | | ???????????????????????### " " " | | ?????????????????????? / ^ # " | | ???????????????????????### # " | | ?????????????????????????# " | | ?????????????????????????###" "##"" = " | | ???????????????????????????#"R"# =%! """""" | | ???????????????????????????#"??## / | +----------------------------------------------------+ Best States ------------- Heat Dissipation 68 Coolant Potential 100 Energy Generation 45 Energy Capacity 340 Matter Stores 300 Matter Capacity 300 Sight Range 16 Robot Scan Range 20 Terrain Scan Density 10 Armor Coverage 525 Evasion (%) 68 Targeting Accuracy 8 Recoil Reduction 11 Defensive Hacking 10 Relay Coupler Types 3 Relay Coupler Value 100 Item Schematics ----------------- None Robot Schematics ------------------ None Fabricated ------------ Nothing Alien Tech Used ----------------- None Achievements -------------- Giant Slayer Challenges ------------ None Game ------ Seed SensorThrusterSource Manual? 0 Play Time 04:31:27 Cumulative 183.6 hours Start 2022.05.31 @ 00:04:33 End 2022.05.31 @ 19:18:57 Sessions 7 Manual Loads 0 Difficulty Rogue Special Mode None Game No. 256 Rogue 256 Adventurer 0 Explorer 0 Win Type - Total 9 Types 7/0/1/1/0/0/0/0/0 Lore% 54 Gallery% 76 Achievement% 65 Wizard Run 0 Options --------- ASCII 0 Keyboard 0 Movement Numpad Keybinds 0 Fullscreen 1 Font 18/Terminus Map View 76x50 Tactical HUD 1 Map Filters NONE Filters NONE Steam 1 RUN: e051e32c-927f-4f28-82de-4c1c033d7196